bitfinex-derivatives/quotes_BTCF0:USTF0_20240825
["timestamp","ask_amount","ask_price","bid_price","bid_amount"]
[1724576800381,0.215982,63981.0,63980.0,0.002]
[1724576800675,0.576782,63981.0,63980.0,0.002]
[1724576802185,0.215982,63981.0,63980.0,0.002]
[1724576802476,0.576782,63981.0,63980.0,0.002]
[1724576802866,0.486782,63981.0,63980.0,0.002]
[1724576803269,0.576782,63981.0,63980.0,0.002]
[1724576804273,0.576782,63981.0,63980.0,0.04883787]
[1724576805479,0.215982,63981.0,63980.0,0.04883787]
[1724576805874,0.576782,63981.0,63980.0,0.04883787]
[1724576806378,0.576782,63981.0,63980.0,0.002]
[1724576807366,0.576782,63981.0,63980.0,0.012]
[1724576807970,0.215982,63981.0,63980.0,0.012]
[1724576808175,0.27822906,63981.0,63980.0,0.012]
[1724576808374,0.63902906,63981.0,63980.0,0.012]
[1724576808773,0.27822906,63981.0,63980.0,0.012]
[1724576808972,0.63902906,63981.0,63980.0,0.012]
[1724576809168,0.576782,63981.0,63980.0,0.002]
[1724576809373,0.576782,63981.0,63980.0,0.06450584]
[1724576810478,0.576782,63981.0,63980.0,0.002]
[1724576810479,0.69315541,63981.0,63980.0,0.002]
[1724576817587,0.576782,63981.0,63980.0,0.06450584]
[1724576817786,0.6548172,63981.0,63980.0,0.06450584]
[1724576818581,0.215982,63981.0,63980.0,0.06450584]
[1724576818883,0.576782,63981.0,63980.0,0.06450584]
[1724576819079,0.215982,63981.0,63980.0,0.06450584]
[1724576819387,0.576782,63981.0,63980.0,0.06450584]
[1724576819587,0.192502,63981.0,63980.0,0.06450584]
[1724576819888,0.553302,63981.0,63980.0,0.06450584]
[1724576820278,0.576782,63981.0,63980.0,0.06450584]
[1724576821193,0.6548172,63981.0,63980.0,0.06450584]
[1724576821488,0.2940172,63981.0,63980.0,0.06450584]
[1724576821687,0.6548172,63981.0,63980.0,0.06450584]
[1724576822078,0.2940172,63981.0,63980.0,0.06450584]
[1724576822280,0.576782,63981.0,63980.0,0.06450584]
[1724576824386,0.576782,63981.0,63980.0,0.002]
[1724576827680,0.215982,63981.0,63980.0,0.002]
[1724576827880,0.576782,63981.0,63980.0,0.002]
[1724576832387,0.69315573,63981.0,63980.0,0.002]
[1724576837398,0.69315587,63981.0,63980.0,0.002]
[1724576837587,0.69315587,63981.0,63978.0,0.02787789]
[1724576837588,0.078104,63979.0,63978.0,0.02787789]
[1724576837789,0.10827799,63979.0,63978.0,0.02787789]
[1724576838393,0.10867799,63979.0,63978.0,0.02787789]
[1724576838597,0.078111,63973.0,63962.0,0.0016]
[1724576838904,0.09,63964.0,63963.0,0.07]
[1724576839092,0.09,63964.0,63962.0,0.0016]
[1724576839093,0.078124,63963.0,63962.0,0.0016]
[1724576839298,0.20888558,63963.0,63953.0,0.3223]
[1724576839491,0.09,63954.0,63953.0,0.4023]
[1724576839709,0.09013097,63954.0,63953.0,0.27713654]
[1724576839894,0.09013097,63954.0,63953.0,0.30554404]
[1724576840088,0.09013097,63954.0,63953.0,0.30554316]
[1724576840489,0.09013097,63954.0,63953.0,0.1084075]
[1724576842096,0.09113097,63954.0,63953.0,0.1154075]
[1724576842301,0.09213097,63954.0,63953.0,0.1164075]
[1724576842997,0.17026597,63954.0,63953.0,0.1164075]
[1724576843495,0.08026597,63954.0,63953.0,0.1164075]
[1724576843700,0.17026597,63954.0,63953.0,0.1164075]
[1724576846203,0.17026597,63954.0,63953.0,0.17873672]
[1724576849303,0.17026597,63954.0,63953.0,0.1164075]
[1724576849501,0.13117471,63954.0,63953.0,0.1164075]
[1724576850499,0.13122504,63954.0,63953.0,0.1164075]
[1724576856305,0.13222504,63954.0,63953.0,0.1174075]
[1724576856508,0.13222504,63954.0,63953.0,0.1154075]
[1724576858615,0.13222504,63954.0,63953.0,0.17773672]
[1724576860510,0.13262504,63954.0,63953.0,0.17773672]
[1724576861013,0.00145033,63954.0,63953.0,0.17773672]
[1724576861213,0.09145033,63954.0,63953.0,0.17773672]
[1724576861404,0.09145033,63954.0,63953.0,0.1154075]
[1724576862014,0.09145033,63954.0,63953.0,0.17774048]
[1724576862519,0.16948206,63954.0,63953.0,0.1154075]
[1724576862913,0.16958533,63954.0,63953.0,0.1154075]
[1724576863618,0.19491897,63954.0,63953.0,0.1154075]
[1724576864215,0.19491894,63954.0,63953.0,0.1154075]
[1724576866623,0.28855702,63954.0,63953.0,0.1154075]
[1724576867722,0.22510109,63954.0,63953.0,0.1154075]
[1724576869515,0.16958533,63954.0,63953.0,0.32812891]
[1724576871924,0.07958533,63954.0,63953.0,0.23447961]
[1724576872132,0.16958533,63954.0,63953.0,0.23447961]
[1724576876628,0.16958533,63954.0,63953.0,0.3126424]
[1724576876930,0.53038533,63954.0,63953.0,0.3126424]
[1724576877239,0.16958533,63954.0,63953.0,0.3126424]
[1724576877424,0.53038533,63954.0,63953.0,0.19357029]
[1724576877626,0.64945183,63954.0,63953.0,0.1154075]
[1724576878638,0.55572073,63954.0,63953.0,0.1154075]
[1724576879429,0.078142,63948.0,63947.0,0.00023443]
[1724576879637,0.5542774,63948.0,63947.0,0.00023443]
[1724576880022,0.5777574,63948.0,63947.0,0.00023443]
[1724576880232,0.5781574,63948.0,63947.0,0.00023443]
[1724576880427,0.69477859,63948.0,63947.0,0.00023443]
[1724576880830,0.6011774,63948.0,63947.0,0.00023443]
[1724576881424,0.69477859,63948.0,63947.0,0.00023443]
[1724576882139,0.6021774,63948.0,63947.0,0.00023443]
[1724576882532,0.2403774,63948.0,63947.0,0.00023443]
[1724576883037,0.6011774,63948.0,63947.0,0.00023443]
[1724576883337,0.6011774,63948.0,63947.0,0.01023443]
[1724576883630,0.5546774,63948.0,63947.0,0.01023443]
[1724576883833,0.60729005,63948.0,63947.0,0.01023443]
[1724576884633,0.529342,63948.0,63947.0,0.01023443]
[1724576885231,0.529342,63948.0,63947.0,0.07265353]
[1724576889844,0.168542,63948.0,63947.0,0.07265353]
[1724576890044,0.529342,63948.0,63947.0,0.07265353]
[1724576890643,0.529342,63948.0,63947.0,0.01023443]
[1724576891036,0.168542,63948.0,63947.0,0.01023443]
[1724576891244,0.529342,63948.0,63947.0,0.01023443]
[1724576891536,0.529342,63948.0,63947.0,0.02274443]
[1724576897749,0.57610775,63948.0,63947.0,0.08516353]
[1724576897942,0.529342,63948.0,63947.0,0.08516353]
[1724576899539,0.529342,63948.0,63947.0,0.0851726]
[1724576899737,0.529342,63948.0,63947.0,0.02274443]
[1724576901443,0.55467946,63948.0,63947.0,0.02274443]
[1724576902443,0.19387946,63948.0,63947.0,0.02274443]
[1724576902742,0.55467946,63948.0,63947.0,0.02274443]
[1724576904048,0.19387946,63948.0,63947.0,0.02274443]
[1724576904249,0.46467946,63948.0,63947.0,0.02274443]
[1724576904549,0.529342,63948.0,63947.0,0.02274443]
[1724576904741,0.529342,63948.0,63947.0,0.06956558]
[1724576904944,0.55467905,63948.0,63947.0,0.02274443]
[1724576906948,0.19387905,63948.0,63947.0,0.02274443]
[1724576907344,0.55467905,63948.0,63947.0,0.02274443]
[1724576907842,0.529342,63948.0,63947.0,0.02274443]
[1724576909448,0.59174305,63948.0,63947.0,0.02274443]
[1724576911148,0.529342,63948.0,63947.0,0.02274443]
[1724576912155,0.168542,63948.0,63947.0,0.02274443]
[1724576912351,0.529342,63948.0,63947.0,0.02274443]
[1724576912549,0.439342,63948.0,63947.0,0.02274443]
[1724576912852,0.529342,63948.0,63947.0,0.02274443]
[1724576914845,0.59177535,63948.0,63947.0,0.02274443]
[1724576915241,0.59177652,63948.0,63947.0,0.02274443]
[1724576921153,0.529342,63948.0,63947.0,0.21999643]
[1724576922455,0.529342,63948.0,63947.0,0.10090722]
[1724576922760,0.529342,63948.0,63947.0,0.21999643]
[1724576922952,0.77921901,63948.0,63947.0,0.02274443]
[1724576923351,0.41841901,63948.0,63947.0,0.02274443]
[1724576924055,0.77921901,63948.0,63947.0,0.02274443]
[1724576924547,0.41841901,63948.0,63947.0,0.02274443]
[1724576924746,0.77921901,63948.0,63947.0,0.02274443]
[1724576926447,0.41841901,63948.0,63947.0,0.02274443]
[1724576926657,0.77921901,63948.0,63947.0,0.02274443]
[1724576926853,0.6711013,63948.0,63947.0,0.02274443]
[1724576927058,0.74796914,63948.0,63947.0,0.02274443]
[1724576927561,0.62313405,63948.0,63947.0,0.02274443]
[1724576927750,0.58486559,63948.0,63947.0,0.02274443]
[1724576927952,0.62313406,63948.0,63947.0,0.02274443]
[1724576929656,0.26233406,63948.0,63947.0,0.02274443]
[1724576929855,0.59176104,63948.0,63947.0,0.02274443]
[1724576931457,0.23096104,63948.0,63947.0,0.02274443]
[1724576931665,0.59176104,63948.0,63947.0,0.02274443]
[1724576932767,0.23096104,63948.0,63947.0,0.02274443]
[1724576933162,0.529342,63948.0,63947.0,0.02274443]
[1724576933357,0.59176783,63948.0,63947.0,0.02274443]
[1724576934162,0.59176783,63948.0,63947.0,0.21999636]
[1724576934366,0.529342,63948.0,63947.0,0.14183357]
[1724576936566,0.168542,63948.0,63947.0,0.14183357]
[1724576936865,0.529342,63948.0,63947.0,0.14183357]
[1724576937861,0.62313423,63948.0,63947.0,0.02274443]
[1724576938257,0.26233423,63948.0,63947.0,0.02274443]
[1724576938458,0.62313423,63948.0,63947.0,0.02274443]
[1724576939453,0.26233423,63948.0,63947.0,0.02274443]
[1724576939658,0.79481004,63948.0,63947.0,0.02274443]
[1724576939858,0.62313423,63948.0,63947.0,0.02274443]
[1724576942267,0.26233423,63948.0,63947.0,0.02274443]
[1724576942566,0.62313421,63948.0,63947.0,0.02274443]
[1724576942867,0.26233421,63948.0,63947.0,0.02274443]
[1724576943065,0.62313421,63948.0,63947.0,0.02274443]
[1724576944862,0.529342,63948.0,63947.0,0.02274443]
[1724576947063,0.168542,63948.0,63947.0,0.02274443]
[1724576947461,0.59177429,63948.0,63947.0,0.10093439]
[1724576947860,0.59177429,63948.0,63947.0,0.02274443]
[1724576949966,0.529342,63948.0,63947.0,0.02274443]
[1724576950469,0.529342,63948.0,63947.0,0.08529189]
[1724576950662,0.607484,63948.0,63947.0,0.08529189]
[1724576950970,1.403684,63948.0,63947.0,0.08529189]
[1724576951168,0.653684,63948.0,63947.0,0.02274443]
[1724576952869,0.74748478,63948.0,63947.0,0.02274443]
[1724576953371,1.10828478,63948.0,63947.0,0.02274443]
[1724576953675,0.43465616,63948.0,63947.0,0.02274443]
[1724576953866,1.10828478,63948.0,63947.0,0.02274443]
[1724576954066,1.15625616,63948.0,63947.0,0.02274443]
[1724576954661,1.29666661,63948.0,63947.0,0.02274443]
[1724576955272,1.29666661,63948.0,63947.0,0.01274443]
[1724576955775,0.57506661,63948.0,63947.0,0.01274443]
[1724576955976,1.24869523,63948.0,63947.0,0.01274443]
[1724576956171,1.29666661,63948.0,63947.0,0.01274443]
[1724576956375,1.30866661,63948.0,63947.0,0.01274443]
[1724576956768,1.32066661,63948.0,63947.0,0.01374443]
[1724576957463,0.59906661,63948.0,63947.0,0.01374443]
[1724576957665,1.27269722,63948.0,63947.0,0.01374443]
[1724576957868,1.32066962,63948.0,63947.0,0.01374443]
[1724576958073,0.59906962,63948.0,63947.0,0.01374443]
[1724576958268,0.55109722,63948.0,63947.0,0.01374443]
[1724576958474,1.27269722,63948.0,63947.0,0.01374443]
[1724576958676,1.32066962,63948.0,63947.0,0.01374443]
[1724576959668,1.23066962,63948.0,63947.0,0.01374443]
[1724576959871,1.17889445,63948.0,63947.0,0.06063176]
[1724576960066,1.061964,63948.0,63947.0,0.06063176]
[1724576962681,1.061964,63948.0,63947.0,0.01374443]
[1724576964377,0.07819333,63947.0,63943.0,0.06247497]
[1724576964580,0.07819333,63947.0,63939.0,0.0624767]
[1724576964581,0.078152,63940.0,63939.0,0.0624767]
[1724576964882,0.4508,63940.0,63939.0,0.04685983]
[1724576965273,0.51354439,63940.0,63939.0,0.04685983]
[1724576965674,0.51354439,63940.0,63935.0,0.0624767]
[1724576965675,0.078153,63939.0,63938.0,0.04685983]
[1724576965873,0.078153,63939.0,63938.0,0.05685983]
[1724576965874,0.168153,63939.0,63938.0,0.05685983]
[1724576966081,0.168153,63939.0,63938.0,0.02251]
[1724576966281,0.168153,63939.0,63938.0,0.06935538]
[1724576966485,0.168553,63939.0,63938.0,0.06935538]
[1724576967077,0.170553,63939.0,63938.0,0.06935538]
[1724576967278,0.170553,63939.0,63938.0,0.02251]
[1724576967584,0.173553,63939.0,63938.0,0.02251]
[1724576967972,0.26736313,63939.0,63938.0,0.02251]
[1724576971882,0.31266313,63939.0,63938.0,0.02251]
[1724576973978,0.67346313,63939.0,63938.0,0.02251]
[1724576974295,0.79806909,63939.0,63938.0,0.02251]
[1724576974889,0.61792883,63939.0,63938.0,0.02251]
[1724576975090,0.579653,63939.0,63938.0,0.05051016]
[1724576975394,0.64195701,63939.0,63938.0,0.02251]
[1724576975590,0.579653,63939.0,63938.0,0.06934566]
[1724576975890,0.218853,63939.0,63938.0,0.06934566]
[1724576976091,0.579653,63939.0,63938.0,0.06934566]
[1724576976979,0.218853,63939.0,63938.0,0.06934566]
[1724576977188,0.64195701,63939.0,63938.0,0.06934566]
[1724576977985,0.64195701,63939.0,63938.0,0.02251]
[1724576978189,0.64195701,63939.0,63938.0,0.06934566]
[1724576979296,0.579653,63939.0,63938.0,0.09717689]
[1724576980190,0.64197559,63939.0,63938.0,0.05034123]
[1724576980695,0.579653,63939.0,63938.0,0.05034123]
[1724576981489,0.64197791,63939.0,63938.0,0.05034123]
[1724576981689,0.579653,63939.0,63938.0,0.05034123]
[1724576982093,0.64197873,63939.0,63938.0,0.09717689]
[1724576982690,0.59667873,63939.0,63938.0,0.09717689]
[1724576982995,0.612506,63939.0,63938.0,0.05034123]
[1724576984893,0.251706,63939.0,63938.0,0.05034123]
[1724576985094,0.973306,63939.0,63938.0,0.05034123]
[1724576985490,0.251706,63939.0,63938.0,0.05034123]
[1724576985700,0.973306,63939.0,63938.0,0.05034123]
[1724576989099,0.996786,63939.0,63938.0,0.05034123]
[1724576989795,0.906786,63939.0,63938.0,0.05034123]
[1724576989997,0.96232449,63939.0,63938.0,0.05034123]
[1724576990307,1.05232449,63939.0,63938.0,0.05034123]
[1724576991606,0.33072449,63939.0,63938.0,0.05034123]
[1724576991808,1.05232449,63939.0,63938.0,0.05034123]
[1724576993504,0.33072449,63939.0,63938.0,0.05034123]
[1724576993710,1.05232449,63939.0,63938.0,0.05034123]
[1724576995306,1.05232447,63939.0,63938.0,0.05034123]
[1724576996010,0.33072447,63939.0,63938.0,0.05034123]
[1724576996216,0.97417147,63939.0,63938.0,0.05034123]
[1724576997110,0.2750335,63939.0,63938.0,0.05034123]
[1724576997405,0.9966335,63939.0,63938.0,0.05034123]
[1724576998412,0.2750335,63939.0,63938.0,0.05034123]
[1724576998619,0.9966335,63939.0,63938.0,0.05034123]
[1724576999006,0.2750335,63939.0,63938.0,0.05034123]
[1724576999203,0.9966335,63939.0,63938.0,0.05034123]
[1724576999604,0.9731535,63939.0,63938.0,0.05034123]
[1724577000319,0.9966335,63939.0,63938.0,0.05034123]
[1724577000707,0.918633,63939.0,63938.0,0.05034123]
[1724577002017,0.9966335,63939.0,63938.0,0.05034123]
[1724577003608,0.2750335,63939.0,63938.0,0.05034123]
[1724577004012,0.9966335,63939.0,63938.0,0.05034123]
[1724577004519,0.918633,63939.0,63938.0,0.05034123]
[1724577005409,1.3877038,63939.0,63936.0,0.0624767]
[1724577005605,1.3877038,63939.0,63933.0,0.00023462]
[1724577005606,0.078159,63934.0,63933.0,0.00023462]
[1724577005916,0.078159,63934.0,63933.0,0.09070088]
[1724577005917,0.168159,63934.0,63933.0,0.09070088]
[1724577006117,0.168159,63934.0,63933.0,0.00023462]
[1724577006321,0.168559,63934.0,63933.0,0.00023462]
[1724577006709,0.178559,63934.0,63933.0,0.00023462]
[1724577007420,0.178559,63934.0,63933.0,0.01274462]
[1724577007814,0.25657806,63934.0,63933.0,0.01274462]
[1724577008204,0.25657806,63934.0,63933.0,0.05964369]
[1724577008813,0.25657806,63934.0,63933.0,0.0881048]
[1724577009012,0.26757806,63934.0,63933.0,0.0881048]
[1724577009317,0.26757806,63934.0,63933.0,0.04120573]
[1724577009512,0.26857806,63934.0,63933.0,0.04120573]
[1724577009711,0.25757806,63934.0,63933.0,0.04120573]
[1724577009919,0.192559,63934.0,63933.0,0.04120573]
[1724577010108,0.27251446,63934.0,63933.0,0.04120573]
[1724577010710,0.27351446,63934.0,63933.0,0.04120573]
[1724577011514,0.99511446,63934.0,63933.0,0.04120573]
[1724577011712,0.98211446,63934.0,63933.0,0.04120573]
[1724577011916,0.99611446,63934.0,63933.0,0.04220573]
[1724577012111,1.05996713,63934.0,63933.0,0.04220573]
[1724577013110,1.05896713,63934.0,63933.0,0.04220573]
[1724577013815,1.05996713,63934.0,63933.0,0.04220573]
[1724577014316,1.2160687,63934.0,63933.0,0.04220573]
[1724577014716,1.2020687,63934.0,63933.0,0.04220573]
[1724577014917,1.2160687,63934.0,63933.0,0.04120573]
[1724577015110,1.2160687,63934.0,63933.0,0.04220573]
[1724577015111,1.05996713,63934.0,63933.0,0.04220573]
[1724577016722,0.32436713,63934.0,63933.0,0.04220573]
[1724577017018,1.01198358,63934.0,63933.0,0.04220573]
[1724577017224,1.05996713,63934.0,63933.0,0.04220573]
[1724577017518,0.32436713,63934.0,63933.0,0.04220573]
[1724577017714,1.01198358,63934.0,63933.0,0.04220573]
[1724577017916,0.33836715,63934.0,63933.0,0.04220573]
[1724577018215,1.01198359,63934.0,63933.0,0.04220573]
[1724577018515,1.25212615,63934.0,63933.0,0.04220573]
[1724577018719,1.25212615,63934.0,63920.0,0.00017065]
[1724577018720,1.17402255,63934.0,63920.0,0.00017065]
[1724577018925,0.528975,63921.0,63920.0,0.05017065]
[1724577019108,0.62284992,63921.0,63920.0,0.00017065]
[1724577019418,0.62324992,63921.0,63920.0,0.00017065]
[1724577019919,0.078182,63915.0,63914.0,0.00023462]
[1724577020119,0.528982,63915.0,63914.0,0.04705615]
[1724577020312,0.528982,63915.0,63914.0,0.00023462]
[1724577020618,0.528982,63915.0,63914.0,0.01274462]
[1724577020915,0.529382,63915.0,63914.0,0.01274462]
[1724577022116,0.57603055,63915.0,63914.0,0.01274462]
[1724577022819,0.541382,63915.0,63914.0,0.02274462]
[1724577023010,0.553382,63915.0,63914.0,0.02274462]
[1724577024118,0.550382,63915.0,63914.0,0.02274462]
[1724577025025,0.538382,63915.0,63914.0,0.02274462]
[1724577025324,0.545382,63915.0,63914.0,0.02274462]
[1724577025523,0.545382,63915.0,63914.0,0.01274462]
[1724577025822,0.538382,63915.0,63914.0,0.01274462]
[1724577026120,0.546382,63915.0,63914.0,0.01274462]
[1724577026924,0.185582,63915.0,63914.0,0.01274462]
[1724577027333,0.546382,63915.0,63914.0,0.01274462]
[1724577027926,0.547382,63915.0,63914.0,0.01274462]
[1724577028223,0.539382,63915.0,63914.0,0.01274462]
[1724577028425,0.548382,63915.0,63914.0,0.01274462]
[1724577028923,0.187582,63915.0,63914.0,0.01274462]
[1724577029128,0.547382,63915.0,63914.0,0.06274462]
[1724577029424,0.546382,63915.0,63914.0,0.06274462]
[1724577031525,0.538382,63915.0,63914.0,0.06274462]
[1724577031729,0.546382,63915.0,63914.0,0.06274462]
[1724577031917,0.185582,63915.0,63914.0,0.06274462]
[1724577032518,0.546382,63915.0,63914.0,0.06274462]
[1724577032718,0.185582,63915.0,63914.0,0.06274462]
[1724577032925,0.546382,63915.0,63914.0,0.06274462]
[1724577034523,0.185582,63915.0,63914.0,0.06274462]
[1724577034730,0.546382,63915.0,63914.0,0.06274462]
[1724577037232,0.546382,63915.0,63914.0,0.10956615]
[1724577038131,0.185582,63915.0,63914.0,0.10956615]
[1724577038320,0.546382,63915.0,63914.0,0.10956615]
[1724577038731,1e-08,63915.0,63914.0,1.01028762]
[1724577039027,5.033e-05,63921.0,63914.0,1.21943134]
[1724577039231,5.033e-05,63921.0,63920.0,0.09]
[1724577039429,5.033e-05,63921.0,63920.0,0.2]
[1724577039627,5.033e-05,63921.0,63920.0,0.66932]
[1724577041026,5.033e-05,63921.0,63920.0,0.68183]
[1724577041230,0.00105033,63921.0,63920.0,0.68183]
[1724577042026,5.033e-05,63921.0,63920.0,0.68583]
[1724577042521,0.09005033,63921.0,63920.0,0.59583]
[1724577043636,0.09005033,63921.0,63920.0,0.59983]
[1724577044336,0.09005033,63921.0,63920.0,0.64533]
[1724577044536,5.033e-05,63921.0,63920.0,0.64533]
[1724577044732,5.033e-05,63921.0,63920.0,0.723506]
[1724577045336,5.033e-05,63921.0,63920.0,0.719506]
[1724577045635,5.033e-05,63921.0,63920.0,0.722506]
[1724577046437,0.09005033,63921.0,63920.0,0.722506]
[1724577046632,0.09005033,63921.0,63920.0,0.721506]
[1724577047738,0.09005033,63921.0,63920.0,0.718506]
[1724577047935,0.09005033,63921.0,63920.0,0.721506]
[1724577048627,0.09005033,63921.0,63920.0,0.252186]
[1724577049339,0.16822533,63921.0,63920.0,0.27974466]
[1724577052835,0.16822533,63921.0,63920.0,0.27674466]
[1724577053026,0.16822533,63921.0,63920.0,0.27974466]
[1724577056033,0.16822533,63921.0,63920.0,0.27674466]
[1724577056233,0.16822533,63921.0,63920.0,0.27874466]
[1724577056727,0.16822533,63921.0,63920.0,0.27774466]
[1724577057137,0.19357081,63921.0,63920.0,0.27774466]
[1724577057933,0.19357081,63921.0,63920.0,0.63854466]
[1724577058536,0.19357081,63921.0,63920.0,0.27774466]
[1724577058833,0.22376711,63921.0,63920.0,0.27774466]
[1724577061640,0.22376925,63921.0,63920.0,0.27774466]
[1724577063332,0.22376925,63921.0,63920.0,0.27574466]
[1724577063549,0.22376925,63921.0,63920.0,0.27674466]
[1724577064040,0.22376925,63921.0,63920.0,0.27574466]
[1724577064237,0.22376925,63921.0,63920.0,0.27474466]
[1724577064430,0.22376925,63921.0,63920.0,0.27574466]
[1724577064635,0.05559425,63921.0,63920.0,0.36474466]
[1724577064941,0.02534579,63921.0,63920.0,1.15688866]
[1724577065130,0.00023462,63927.0,63925.0,0.07817]
[1724577065337,0.00023462,63927.0,63926.0,0.19716943]
[1724577065533,0.00023462,63927.0,63926.0,0.77644943]
[1724577065939,0.00039576,63927.0,63926.0,0.77684943]
[1724577066144,0.00039576,63927.0,63926.0,0.69879991]
[1724577066744,0.00639576,63927.0,63926.0,0.69979991]
[1724577067342,0.01239576,63927.0,63926.0,0.70079991]
[1724577067542,0.01239576,63927.0,63926.0,0.23151991]
[1724577069748,0.01239576,63927.0,63926.0,0.24402991]
[1724577072152,0.01239576,63927.0,63926.0,0.12491]
[1724577072355,0.01239576,63927.0,63926.0,0.203079]
[1724577074247,0.05916424,63927.0,63926.0,0.203079]
[1724577076148,0.01239576,63927.0,63926.0,0.203079]
[1724577077058,0.05915775,63927.0,63926.0,0.203079]
[1724577078146,0.01239576,63927.0,63926.0,0.203079]
[1724577080145,0.04258908,63927.0,63926.0,0.203079]
[1724577080347,0.06793206,63927.0,63926.0,0.203079]
[1724577080550,0.10620927,63927.0,63926.0,0.203079]
[1724577080744,0.06793206,63927.0,63926.0,0.203079]
[1724577081555,0.23960787,63927.0,63926.0,0.203079]
[1724577081746,0.10620927,63927.0,63926.0,0.203079]
[1724577082149,0.06793206,63927.0,63926.0,0.203079]
[1724577083049,0.20815517,63927.0,63926.0,0.203079]
[1724577083861,0.10620927,63927.0,63926.0,0.203079]
[1724577084058,0.06793206,63927.0,63926.0,0.203079]
[1724577084452,0.06793206,63927.0,63926.0,1.072359]
[1724577084453,0.06048714,63927.0,63926.0,1.072359]
[1724577084758,0.01020993,63927.0,63926.0,1.072359]
[1724577085752,0.01320993,63927.0,63926.0,1.071359]
[1724577085959,0.15743708,63927.0,63926.0,1.070359]
[1724577086157,0.14184702,63927.0,63926.0,1.070359]
[1724577087155,0.007,63927.0,63926.0,1.18946626]
[1724577087465,0.07839462,63933.0,63931.0,0.078163]
[1724577087658,0.07839462,63933.0,63932.0,0.11910726]
[1724577087865,0.07839462,63933.0,63932.0,0.21910726]
[1724577088156,0.07839462,63933.0,63932.0,0.21950726]
[1724577088565,0.07839462,63933.0,63932.0,0.21950725]
[1724577088765,0.08639462,63933.0,63932.0,0.22050725]
[1724577089366,0.08939462,63933.0,63932.0,0.22150725]
[1724577089564,0.08939462,63933.0,63932.0,0.31217825]
[1724577094068,0.08939462,63933.0,63932.0,0.34056686]
[1724577094366,0.08939462,63933.0,63932.0,0.34056636]
[1724577095358,0.11958555,63933.0,63932.0,0.22145961]
[1724577095569,0.15785973,63933.0,63932.0,0.22145961]
[1724577098666,0.15786389,63933.0,63932.0,0.22145961]
[1724577099563,0.1832061,63933.0,63932.0,0.22145961]
[1724577101678,0.3211831,63933.0,63932.0,0.19031365]
[1724577102376,0.17939462,63933.0,63932.0,0.30942417]
[1724577102776,0.17939462,63933.0,63932.0,0.40310992]
[1724577103081,0.17939462,63933.0,63932.0,0.23126317]
[1724577103582,0.17939462,63933.0,63932.0,0.23126613]
[1724577110084,0.17939462,63933.0,63932.0,0.32495188]
[1724577110482,0.34504655,63933.0,63932.0,0.11215265]
[1724577110688,0.41351555,63933.0,63932.0,0.11215265]
[1724577111086,0.27320603,63933.0,63932.0,0.11215265]
[1724577113588,0.27320758,63933.0,63932.0,0.11215265]
[1724577115188,0.23493059,63933.0,63932.0,0.11215265]
[1724577115488,0.35970739,63933.0,63932.0,0.11215265]
[1724577115786,0.39798438,63933.0,63932.0,0.11215265]
[1724577116181,0.27320758,63933.0,63932.0,0.11215265]
[1724577117085,0.39798438,63933.0,63932.0,0.11215265]
[1724577117492,0.39798438,63933.0,63932.0,0.23126797]
[1724577117493,0.17939462,63933.0,63932.0,0.23126797]
[1724577120085,0.08939462,63933.0,63932.0,0.23126797]
[1724577120283,0.17939462,63933.0,63932.0,0.23126797]
[1724577127788,0.17939462,63933.0,63932.0,0.30943918]
[1724577128387,0.17939462,63933.0,63932.0,0.19032386]
[1724577129294,0.17939462,63933.0,63932.0,0.11215265]
[1724577131801,0.17939462,63933.0,63932.0,0.19032386]
[1724577132595,0.27320947,63933.0,63932.0,0.11215265]
[1724577133385,0.4135795,63933.0,63932.0,0.11215265]
[1724577133794,0.27320947,63933.0,63932.0,0.11215265]
[1724577134291,0.42910894,63933.0,63932.0,0.11215265]
[1724577134492,0.32118805,63933.0,63932.0,0.11215265]
[1724577134692,0.27320947,63933.0,63932.0,0.11215265]
[1724577135999,0.42914822,63933.0,63932.0,0.11215265]
[1724577136601,0.27320947,63933.0,63932.0,0.11215265]
[1724577136998,0.63400947,63933.0,63932.0,0.11215265]
[1724577137597,0.68198805,63933.0,63932.0,0.11215265]
[1724577137797,0.63400947,63933.0,63932.0,0.11215265]
[1724577138201,0.63401386,63933.0,63932.0,0.11215265]
[1724577140510,0.54019462,63933.0,63932.0,0.11215265]
[1724577141701,0.17939462,63933.0,63932.0,0.11215265]
[1724577142111,0.54019462,63933.0,63932.0,0.11215265]
[1724577143807,0.17939462,63933.0,63932.0,0.11215265]
[1724577144011,0.17939462,63933.0,63932.0,0.03915841]
[1724577144012,0.60255733,63933.0,63932.0,0.03915841]
[1724577144507,1.35255733,63933.0,63932.0,0.03915841]
[1724577144915,1.43071733,63933.0,63932.0,0.03915841]
[1724577146210,1.43071733,63933.0,63932.0,0.1016716]
[1724577147604,1.51015749,63933.0,63932.0,0.03915841]
[1724577148711,1.46217572,63933.0,63932.0,0.03915841]
[1724577149204,1.51015748,63933.0,63932.0,0.03915841]
[1724577149610,1.46217572,63933.0,63932.0,0.03915841]
[1724577155516,1.43069531,63933.0,63932.0,0.03915841]
[1724577158314,1.00755462,63933.0,63932.0,0.03915841]
[1724577158820,1.43070303,63933.0,63932.0,0.03915841]
[1724577159319,1.06990303,63933.0,63932.0,0.03915841]
[1724577159504,1.43070303,63933.0,63932.0,0.03915841]
[1724577160017,1.45418303,63933.0,63932.0,0.03915841]
[1724577163516,1.39183462,63933.0,63932.0,0.03915841]
[1724577164411,1.39183462,63933.0,63932.0,0.04915841]
[1724577166020,1.31367462,63933.0,63932.0,0.04915841]
[1724577169621,1.31367462,63933.0,63932.0,0.03915841]
[1724577170521,1.38215066,63933.0,63932.0,0.03915841]
[1724577170825,1.40749568,63933.0,63932.0,0.03915841]
[1724577175421,1.40749569,63933.0,63932.0,0.03915841]
[1724577175629,1.45547744,63933.0,63932.0,0.03915841]
[1724577175927,1.45547744,63933.0,63932.0,0.04915841]
[1724577176325,1.40749569,63933.0,63932.0,0.04915841]
[1724577177532,1.31367462,63933.0,63932.0,0.04915841]
[1724577179726,1.29019462,63933.0,63932.0,0.04915841]
[1724577180630,1.31367462,63933.0,63932.0,0.04915841]
[1724577185632,1.45547741,63933.0,63932.0,0.04915841]
[1724577186735,1.45547741,63933.0,63932.0,0.03915841]
[1724577187033,1.40749567,63933.0,63932.0,0.03915841]
[1724577189334,1.04669567,63933.0,63932.0,0.03915841]
[1724577189535,1.40749567,63933.0,63932.0,0.03915841]
[1724577191228,1.04669567,63933.0,63932.0,0.03915841]
[1724577191432,1.40749567,63933.0,63932.0,0.03915841]
[1724577192731,1.31367462,63933.0,63932.0,0.03915841]
[1724577196836,1.31367462,63933.0,63932.0,0.04915841]
[1724577197150,1.29019462,63933.0,63932.0,0.04915841]
[1724577197542,0.92939462,63933.0,63932.0,0.04915841]